bitfinex-derivatives/quotes_ETHF0:USTF0_20250507
["timestamp","ask_amount","ask_price","bid_price","bid_amount"]
[1746594609094,6.5876,1829.0,1828.9,1.09371]
[1746594609600,15.37475491,1829.0,1828.9,2.70761]
[1746594614301,15.37475491,1829.0,1828.9,1.09371]
[1746594616703,16.46840491,1829.0,1828.9,1.09371]
[1746594617598,15.37475491,1829.0,1828.9,1.09371]
[1746594621006,16.46840491,1829.0,1828.9,1.09371]
[1746594621610,15.37475491,1829.0,1828.9,1.09371]
[1746594624910,16.46840491,1829.0,1828.9,1.09371]
[1746594625112,20.06840491,1829.0,1828.9,1.09371]
[1746594625611,18.97475491,1829.0,1828.9,1.09371]
[1746594628209,9.3914,1829.0,1828.9,1.09371]
[1746594628511,7.785,1829.0,1828.9,6.86241]
[1746594630913,7.785,1829.0,1828.9,1.09371]
[1746594631114,8.5846,1829.0,1828.9,1.09371]
[1746594631311,10.293,1829.0,1828.9,1.09371]
[1746594635215,19.08015491,1829.0,1828.9,1.09371]
[1746594637720,18.28055491,1829.0,1828.9,1.09371]
[1746594638014,9.4934,1829.0,1828.9,1.09371]
[1746594638319,5.8934,1829.0,1828.9,3.65811]
[1746594639117,9.4934,1829.0,1828.9,3.65811]
[1746594639315,5.3084,1829.0,1828.9,3.65811]
[1746594642221,5.3084,1829.0,1828.9,1.95571]
[1746594643622,5.3084,1829.0,1828.9,3.62731]
[1746594644125,1.7084,1829.0,1828.9,3.62731]
[1746594645722,0.8212,1829.2,1829.1,1.09359]
[1746594646124,13.20835491,1829.2,1829.1,1.09359]
[1746594647226,14.90575491,1829.2,1829.1,1.09359]
[1746594651026,14.90575491,1829.2,1829.1,1.96089]
[1746594651236,5.2974,1829.2,1829.1,1.96089]
[1746594651428,3.6,1829.2,1829.1,5.16869]
[1746594652227,7.4219,1829.5,1829.4,1.09341]
[1746594652716,5.49072728,1829.5,1829.4,1.09341]
[1746594652923,5.49072728,1829.5,1829.4,3.57131]
[1746594657731,2.4449,1829.5,1829.4,3.57131]
[1746594659334,2.4449,1829.5,1829.4,1.90541]
[1746594659836,2.4449,1829.5,1829.4,1.09341]
[1746594660433,11.23205491,1829.5,1829.1,13.21722989]
[1746594660633,8.78715491,1829.3,1829.2,1.09353]
[1746594661034,10.42395491,1829.3,1829.2,1.09353]
[1746594661233,11.51742491,1829.3,1829.2,1.09353]
[1746594661436,10.42395491,1829.3,1829.2,1.09353]
[1746594661637,1.09353,1829.2,1829.1,8.36904989]
[1746594661837,14.49815491,1829.2,1829.1,8.36904989]
[1746594662137,12.38388491,1829.2,1829.1,7.27546989]
[1746594662338,12.38388491,1829.2,1829.1,8.36905989]
[1746594662542,24.75268491,1829.2,1829.1,7.27546989]
[1746594662841,1.09359,1829.1,1829.0,10.86997166]
[1746594663138,16.53974491,1829.1,1829.0,10.86997166]
[1746594663336,21.53974491,1829.1,1829.0,10.86997166]
[1746594664240,21.53974491,1829.1,1828.8,1.09377]
[1746594664241,1.09371,1828.9,1828.8,1.09377]
[1746594664441,16.15995491,1828.9,1828.8,1.09377]
[1746594664832,17.78245491,1828.9,1828.8,1.09377]
[1746594665238,21.38245491,1828.9,1828.8,1.09377]
[1746594666242,22.47616491,1828.9,1828.8,1.09377]
[1746594666430,22.47616491,1828.9,1828.6,12.59372964]
[1746594666431,1.09379,1828.8,1828.7,1.09379]
[1746594666628,8.53999,1828.8,1828.7,1.09379]
[1746594666834,8.53999,1828.8,1828.6,8.38858964]
[1746594666835,1.09383,1828.7,1828.6,8.38858964]
[1746594667034,11.51768491,1828.7,1828.6,8.38858964]
[1746594667237,10.42385491,1828.7,1828.6,8.38858964]
[1746594667628,13.63165491,1828.7,1828.6,8.38858964]
[1746594667835,14.72548491,1828.7,1828.6,8.38858964]
[1746594668141,1.09389,1828.6,1828.5,1.09391]
[1746594668335,11.51774491,1828.6,1828.5,1.09391]
[1746594669141,14.02385491,1828.6,1828.5,1.09391]
[1746594670243,10.42385491,1828.6,1828.5,1.09391]
[1746594670442,5.0073,1828.8,1828.7,1.09383]
[1746594670643,6.6863,1828.8,1828.7,1.09383]
[1746594670835,15.47345491,1828.8,1828.7,1.09383]
[1746594671539,16.56722491,1828.8,1828.7,1.09383]
[1746594671739,15.47345491,1828.8,1828.7,1.09383]
[1746594672842,16.56722491,1828.8,1828.7,1.09383]
[1746594673240,1.09398,1828.5,1828.4,1.09397]
[1746594673448,9.88113491,1828.5,1828.4,1.09397]
[1746594673753,5.7451,1828.7,1828.5,1.09395]
[1746594673754,1.09394,1828.6,1828.5,1.09395]
[1746594673937,1.745,1828.6,1828.5,1.09395]
[1746594674137,10.53215491,1828.6,1828.5,1.09395]
[1746594674847,11.62604491,1828.6,1828.5,1.09395]
[1746594679244,1.09399,1828.5,1828.4,1.09397]
[1746594679451,11.49704491,1828.5,1828.4,1.09397]
[1746594679647,12.61121763,1828.5,1828.4,1.09397]
[1746594680151,1.09401,1828.4,1828.3,4.30182]
[1746594680451,12.34266491,1828.4,1828.3,1.09402]
[1746594680742,12.34266491,1828.4,1828.2,1.6884]
[1746594680743,1.09407,1828.3,1828.2,1.93337]
[1746594681046,1.09419,1828.1,1828.0,1.09423]
[1746594681241,13.08914491,1828.1,1828.0,1.09423]
[1746594681549,1.09431,1827.9,1827.8,1.09433]
[1746594681744,1.09437,1827.8,1827.7,10.86997166]
[1746594681937,11.51332491,1827.8,1827.7,10.86997166]
[1746594682347,15.68932491,1827.8,1827.7,10.86997166]
[1746594683844,17.33094491,1827.8,1827.3,4.30243]
[1746594684049,17.33094491,1827.8,1827.4,1.09461]
[1746594684050,4.14042728,1827.5,1827.4,1.09461]
[1746594684349,3.04582728,1827.5,1827.4,1.09461]
[1746594684549,8.78715491,1827.5,1827.4,1.09461]
[1746594684752,10.51635491,1827.5,1827.4,1.09461]
[1746594685351,5.0248,1827.6,1827.5,1.09455]
[1746594685649,5.8892,1827.6,1827.5,1.09455]
[1746594686051,4.30203,1828.1,1827.6,2.73623]
[1746594686352,10.51635491,1828.0,1827.9,1.09431]
[1746594686854,1.7292,1828.0,1827.9,1.09431]
[1746594687447,7.47052763,1828.0,1827.9,1.09431]
[1746594687751,4.9977,1828.2,1828.1,1.09419]
[1746594687951,6.6509,1828.2,1828.1,1.09419]
[1746594688150,19.03805491,1828.2,1828.1,1.09419]
[1746594688554,20.13218491,1828.2,1828.1,1.09419]
[1746594691351,19.03805491,1828.2,1828.1,1.09419]
[1746594691556,20.13218491,1828.2,1828.1,1.09419]
[1746594692148,15.43805491,1828.2,1828.1,1.09419]
[1746594692658,16.53218491,1828.2,1828.1,1.09419]
[1746594692957,15.43805491,1828.2,1828.1,1.09419]
[1746594693158,19.03805491,1828.2,1828.1,1.09419]
[1746594693757,20.13218491,1828.2,1828.1,1.09419]
[1746594694157,16.53218491,1828.2,1828.1,1.09419]
[1746594697161,15.43805491,1828.2,1828.1,1.09419]
[1746594697460,5.8142,1828.2,1828.1,1.09419]
[1746594697757,4.161,1828.2,1828.1,2.77719]
[1746594702257,4.9427,1828.3,1828.2,1.09413]
[1746594702564,1.7349,1828.3,1828.2,1.09413]
[1746594702763,1.7349,1828.3,1828.2,2.82683]
[1746594703258,4.182,1828.4,1828.3,1.09407]
[1746594703463,4.182,1828.4,1828.3,2.82677]
[1746594703663,5.8032,1828.4,1828.3,2.82677]
[1746594704858,8.84902728,1828.4,1828.3,2.82677]
[1746594705061,4.182,1828.4,1828.3,2.82677]
[1746594706971,5.7689,1828.4,1828.3,2.82677]
[1746594711573,5.7689,1828.4,1828.3,6.03457]
[1746594714169,5.7689,1828.4,1828.3,9.63457]
[1746594714568,4.182,1828.4,1828.3,9.63457]
[1746594716377,1.5887,1828.5,1828.4,1.09401]
[1746594716578,1.5887,1828.5,1828.4,1.96751]
[1746594716768,10.37585491,1828.5,1828.4,1.96751]
[1746594717268,10.37585491,1828.5,1828.4,3.56851]
[1746594717769,10.37585491,1828.5,1828.4,1.96751]
[1746594720870,1.5887,1828.5,1828.4,3.72421]
[1746594721171,8.46348,1829.0,1828.9,1.09371]
[1746594721368,10.97668,1829.0,1828.9,1.09371]
[1746594721569,19.76383491,1829.0,1828.9,1.09371]
[1746594721971,18.67015491,1829.0,1828.9,1.09371]
[1746594724386,13.70485491,1829.0,1828.9,1.09371]
[1746594724575,1.7099,1829.0,1828.9,2.70531]
[1746594727987,1.7099,1829.0,1828.9,1.09371]
[1746594728274,14.65805491,1829.0,1828.6,5.94252]
[1746594728475,1.09377,1828.8,1828.7,1.09383]
[1746594728980,10.42625491,1828.8,1828.7,1.09383]
[1746594729181,1.663,1828.9,1828.5,6.78639]
[1746594729182,0.8068,1828.9,1828.8,1.09377]
[1746594729881,0.8068,1828.9,1828.8,3.54177]
[1746594730576,2.533,1828.9,1828.8,3.54177]
[1746594734681,1.7262,1828.9,1828.8,3.54177]
[1746594738084,4.161,1829.0,1828.9,1.09371]
[1746594738391,8.78715491,1829.0,1828.9,2.75111]
[1746594738887,10.42765491,1829.0,1828.9,2.75111]
[1746594739293,1.09344,1829.4,1829.3,1.09347]
[1746594739590,8.78715491,1829.2,1829.1,1.09359]
[1746594739892,8.78715491,1829.2,1829.1,1.92269]
[1746594740689,8.78715491,1829.2,1829.1,5.13049]
[1746594740891,0.821,1829.3,1829.2,1.09353]
[1746594741191,3.86682728,1829.3,1829.2,1.90063]
[1746594741387,0.821,1829.3,1829.2,1.90063]
[1746594742794,3.86682728,1829.3,1829.2,1.90063]
[1746594743388,3.86682728,1829.3,1829.2,1.09353]
[1746594743591,5.48192728,1829.3,1829.2,1.09353]
[1746594745796,11.22325491,1829.3,1829.2,1.09353]
[1746594746895,1.09359,1829.1,1829.0,1.09364]
[1746594747087,13.48074491,1829.1,1829.0,1.09364]
[1746594747495,16.68854491,1829.1,1829.0,1.09364]
[1746594747695,17.31905491,1829.1,1828.6,6.75521]
[1746594747891,2.81779,1829.0,1828.9,1.09371]
[1746594748197,6.41779,1829.0,1828.9,1.09371]
[1746594748395,15.20494491,1829.0,1828.9,1.09371]
[1746594748695,15.20490491,1829.0,1828.9,1.09371]
[1746594750197,11.60490491,1829.0,1828.9,1.09371]
[1746594752098,15.20490491,1829.0,1828.9,1.09371]
[1746594753203,10.51125491,1829.0,1828.9,1.09371]
[1746594753595,10.51125491,1829.0,1828.9,3.61791]
[1746594754694,11.60490491,1829.0,1828.9,3.61791]
[1746594755404,11.60490491,1829.0,1828.9,1.09371]
[1746594757102,15.20490491,1829.0,1828.9,1.09371]
[1746594758104,11.60490491,1829.0,1828.9,1.09371]
[1746594760403,12.45230491,1829.0,1828.9,1.09371]
[1746594760904,11.35865491,1829.0,1828.9,1.09371]
[1746594761309,12.45230491,1829.0,1828.9,1.09371]
[1746594765315,12.45230491,1829.0,1828.9,1.94161]
[1746594770514,1.09371,1828.9,1828.7,3.2078]
[1746594770723,8.78715491,1828.8,1828.6,2.5269]
[1746594770915,1.09382,1828.8,1828.7,1.09383]
[1746594771313,14.04697491,1828.8,1828.7,1.09383]
[1746594772623,11.00114763,1828.8,1828.7,1.09383]
[1746594772826,14.04697491,1828.8,1828.7,1.09383]
[1746594774929,12.95315491,1828.8,1828.7,1.09383]
[1746594775130,9.90732763,1828.8,1828.7,1.09383]
[1746594775519,9.90732763,1828.8,1828.7,2.77353]
[1746594775725,4.166,1828.8,1828.7,2.77353]
[1746594776624,4.166,1828.8,1828.7,4.42603]
[1746594778030,1.09369,1829.0,1828.9,1.09371]
[1746594778432,9.88084491,1829.0,1828.9,1.09371]
[1746594780430,1.09371,1828.9,1828.8,2.74623]
[1746594780631,9.88086491,1828.9,1828.8,2.74623]
[1746594780834,1.09371,1828.9,1828.8,2.74623]
[1746594781527,1.09377,1828.8,1828.7,1.9388]
[1746594781732,1.09383,1828.7,1828.6,1.09387]
[1746594781929,10.67998491,1828.7,1828.6,1.09387]
[1746594783336,13.25168491,1828.7,1828.6,1.09387]
[1746594784930,13.25168491,1828.7,1828.5,3.568]
[1746594785131,10.44965491,1828.6,1828.5,3.568]
[1746594785528,10.44965491,1828.6,1828.5,2.7581]
[1746594786126,11.54354491,1828.6,1828.5,2.7581]
[1746594786327,10.44965491,1828.6,1828.4,5.14901]
[1746594786532,10.44965491,1828.5,1828.4,5.14901]
[1746594786733,1.09407,1828.3,1828.2,11.96407166]
[1746594787036,8.78715491,1828.3,1828.2,11.96407166]
[1746594787331,5.74132763,1828.3,1828.2,13.55477166]
[1746594788035,7.39792763,1828.3,1828.2,13.55477166]
[1746594788331,11.53782491,1828.3,1828.2,10.86997166]
[1746594788734,19.74562491,1828.3,1828.2,10.86997166]
[1746594789032,23.90662491,1828.3,1828.2,10.86997166]
[1746594789234,22.50662491,1828.3,1828.2,10.86997166]
[1746594789930,27.50662491,1828.3,1828.2,7.18217155]
[1746594790128,1.09425,1828.0,1827.9,7.30318712]
[1746594790333,9.88140491,1828.0,1827.9,7.30318712]
[1746594790724,12.39840491,1828.0,1827.9,7.30318712]
[1746594793229,15.99840491,1828.0,1827.9,7.30318712]
[1746594793429,15.99840491,1828.0,1827.8,1.7496]
[1746594793430,1.09431,1827.9,1827.8,1.7496]
[1746594793630,9.88146491,1827.9,1827.8,2.84397]
[1746594793825,6.83563763,1827.9,1827.8,1.7496]
[1746594794032,6.83563763,1827.9,1827.8,2.84397]
[1746594796437,8.48183763,1827.9,1827.8,2.84397]
[1746594796843,11.52766491,1827.9,1827.8,1.7496]
[1746594797337,11.52766491,1827.9,1827.8,2.84397]
[1746594797534,1.09437,1827.8,1827.7,1.6188]
[1746594797740,11.52642491,1827.8,1827.7,1.6188]
[1746594798039,11.52642491,1827.8,1827.7,2.71323]
[1746594798239,11.52642491,1827.8,1827.7,4.40873]
[1746594804444,11.52642491,1827.8,1827.7,2.78993]
[1746594809144,11.52642491,1827.8,1827.7,3.63573]
[1746594817151,9.88152491,1827.8,1827.7,3.63573]
[1746594817544,5.16249,1828.0,1827.9,1.09431]
[1746594817742,8.20831728,1828.0,1827.9,1.09431]
[1746594817949,3.2078,1828.0,1827.9,1.90711]
[1746594818349,5.25422,1828.1,1828.0,1.09425]
[1746594818645,14.04137491,1828.1,1828.0,3.51555]
[1746594820751,5.25422,1828.1,1828.0,3.51555]
[1746594820948,1.09422,1828.1,1828.0,3.51555]
[1746594821953,3.2078,1828.2,1828.1,1.09419]
[1746594822249,3.2078,1828.2,1828.1,2.70739]
[1746594823353,1.09413,1828.3,1828.2,1.09413]
[1746594823553,4.13995728,1828.3,1828.2,3.52933]
[1746594823853,9.88128491,1828.3,1828.2,3.52933]
[1746594824048,11.56878491,1828.3,1828.2,3.52933]
[1746594824547,10.47465491,1828.3,1828.2,3.52933]
[1746594825057,5.8922,1828.4,1828.3,1.09407]
[1746594825352,1.7312,1828.4,1828.3,2.73777]
[1746594825652,2.5054,1828.4,1828.3,2.73777]
[1746594826157,3.59941,1828.4,1828.3,2.73777]
[1746594827452,9.34073763,1828.4,1828.3,2.73777]
[1746594827753,12.38656491,1828.4,1828.3,2.73777]
[1746594827952,11.29255491,1828.4,1828.3,2.73777]
[1746594828252,12.38656491,1828.4,1828.3,2.73777]
[1746594829354,11.29255491,1828.4,1828.3,2.73777]
[1746594829654,9.25541,1828.5,1828.4,1.09401]
[1746594829655,4.161,1828.5,1828.4,1.09401]
[1746594829952,4.161,1828.5,1828.4,3.49351]
[1746594831150,2.5135,1828.6,1828.5,1.09395]
[1746594831349,2.5135,1828.6,1828.5,3.51495]
[1746594831549,3.60739,1828.6,1828.5,3.51495]
[1746594832858,6.65321728,1828.6,1828.5,3.51495]
[1746594834147,5.55932728,1828.6,1828.5,3.51495]
[1746594834556,6.65321728,1828.6,1828.5,3.51495]
[1746594834757,5.55932728,1828.6,1828.5,3.51495]
[1746594835958,6.65321728,1828.6,1828.5,3.51495]
[1746594836460,12.39454491,1828.6,1828.5,3.51495]
[1746594838453,11.30065491,1828.6,1828.5,3.51495]
[1746594839654,12.39454491,1828.6,1828.5,3.51495]
[1746594843665,11.30065491,1828.6,1828.5,3.51495]
[1746594845563,12.39454491,1828.6,1828.5,3.51495]
[1746594846465,11.30065491,1828.6,1828.5,3.51495]
[1746594846662,12.39454491,1828.6,1828.5,3.51495]
[1746594847663,1.09395,1828.5,1828.4,1.09397]
[1746594847861,11.52860491,1828.5,1828.4,1.09397]
[1746594849062,15.12860491,1828.5,1828.4,1.09397]
[1746594849268,14.03465491,1828.5,1828.4,1.09397]
[1746594849470,14.03465491,1828.5,1828.4,2.78047]
[1746594850170,10.43465491,1828.5,1828.4,2.78047]
[1746594850773,0.8706,1828.6,1828.5,1.09395]
[1746594850965,0.8706,1828.6,1828.5,3.60415]
[1746594851164,9.65775491,1828.6,1828.5,3.60415]
[1746594851674,4.16,1828.8,1828.5,5.718]
[1746594851870,8.78715491,1828.7,1828.6,3.67309]
[1746594852071,8.78715491,1828.7,1828.6,1.94979]
[1746594852270,6.88778,1828.8,1828.7,1.09383]
[1746594852672,15.67493491,1828.8,1828.7,1.09383]
[1746594852864,1.09389,1828.6,1828.5,3.2078]
[1746594853062,8.78715491,1828.6,1828.3,2.73517]
[1746594853263,3.2876,1828.5,1828.4,1.09401]
[1746594853671,19.44255491,1828.5,1828.0,3.2078]
[1746594853878,1.09408,1828.3,1828.2,1.09408]
[1746594854068,2.72806,1828.4,1828.3,1.09407]
[1746594854473,11.51521491,1828.4,1828.3,1.09407]
[1746594854681,1.09409,1828.3,1828.2,1.09409]
[1746594854872,8.50911763,1828.3,1828.2,1.09409]
[1746594855177,14.06085491,1828.3,1828.2,1.09409]
[1746594855678,15.15492491,1828.3,1828.2,1.09409]
[1746594856879,14.06085491,1828.3,1828.2,1.09409]
[1746594858977,15.15492491,1828.3,1828.2,1.09409]
[1746594859177,10.46085491,1828.3,1828.2,1.09409]
[1746594861785,1.6737,1828.3,1828.2,1.09409]
[1746594862382,0.8597,1828.5,1828.4,1.09401]
[1746594862583,9.64685491,1828.5,1828.4,1.09401]
[1746594862882,1.6559,1828.6,1828.5,1.09395]
[1746594863078,10.44305491,1828.6,1828.5,1.09395]
[1746594863387,6.05884,1828.7,1828.6,1.09389]
[1746594863781,14.84599491,1828.7,1828.6,1.09389]
[1746594864287,13.75215491,1828.7,1828.6,1.90629]
[1746594865787,14.84598491,1828.7,1828.6,1.90629]
[1746594867587,13.75215491,1828.7,1828.6,1.90629]
[1746594867890,0.805,1828.7,1828.6,1.90629]
[1746594868189,1.6559,1828.8,1828.7,1.09383]
[1746594868381,10.44305491,1828.8,1828.7,2.80343]
[1746594869281,11.53682491,1828.8,1828.7,2.80343]
[1746594869989,10.44305491,1828.8,1828.7,2.80343]
[1746594871191,10.44305491,1828.8,1828.7,6.40343]
[1746594873190,10.44305491,1828.8,1828.7,2.80343]
[1746594874693,1.92759,1829.0,1828.7,1.7096]
[1746594874993,8.78715491,1828.9,1828.8,1.7069]
[1746594875292,9.88086491,1828.9,1828.8,2.80067]
[1746594875591,11.56966491,1828.9,1828.8,2.80067]
[1746594877093,15.16966491,1828.9,1828.8,1.09377]
[1746594878093,11.56966491,1828.9,1828.8,1.09377]
[1746594880092,10.47595491,1828.9,1828.6,4.0202]
[1746594880295,9.88098491,1828.7,1828.6,4.30164]
[1746594880598,8.78715491,1828.7,1828.6,4.30164]
[1746594880799,9.58325491,1828.7,1828.6,4.30164]
[1746594880999,9.58325491,1828.7,1828.6,5.94634]
[1746594881201,11.17095491,1828.7,1828.6,5.94634]
[1746594881800,12.26478491,1828.7,1828.6,5.94634]
[1746594882602,11.17095491,1828.7,1828.6,5.94634]
[1746594884299,12.26478491,1828.7,1828.6,5.94634]
[1746594884596,12.26478491,1828.7,1828.6,4.30164]
[1746594888702,16.43778491,1828.7,1828.6,4.30164]
[1746594889305,17.26938491,1828.7,1828.6,4.30164]
[1746594889598,16.17555491,1828.7,1828.6,4.30164]
[1746594889801,17.26938491,1828.7,1828.6,4.30164]
[1746594891006,13.09638491,1828.7,1828.6,4.30164]
[1746594891200,17.26938491,1828.7,1828.6,4.30164]
[1746594891400,17.26938491,1828.7,1828.6,1.09384]
[1746594892104,20.86938491,1828.7,1828.6,1.09384]
[1746594893206,17.26938491,1828.7,1828.6,1.09384]
[1746594895600,1.09389,1828.6,1828.5,2.83763]
[1746594895805,11.51494491,1828.6,1828.5,2.83763]
[1746594896007,11.51494491,1828.6,1828.5,1.09393]
[1746594896401,1.09395,1828.5,1828.4,1.9468]
[1746594896602,8.46917763,1828.5,1828.4,3.556]
[1746594896906,2.72785,1828.5,1828.4,3.556]
[1746594898301,1.6339,1828.5,1828.4,3.556]
[1746594898508,2.72785,1828.5,1828.4,3.556]
[1746594898706,1.09401,1828.4,1828.3,1.09401]
[1746594899007,11.46796491,1828.4,1828.3,1.09401]
[1746594899311,11.24235491,1828.4,1828.3,2.82331]
[1746594899608,12.33636491,1828.4,1828.3,2.82331]
[1746594900308,11.24235491,1828.4,1828.3,2.82331]
[1746594900606,12.33636491,1828.4,1828.2,0.8396]
[1746594900908,1.09419,1828.1,1828.0,8.39743712]
[1746594901104,8.78715491,1828.2,1828.1,1.09419]
[1746594901301,8.78715491,1828.1,1828.0,7.30318712]
[1746594901509,11.49694491,1828.1,1828.0,7.30318712]
[1746594902109,13.22554491,1828.1,1828.0,7.30318712]
[1746594902310,16.82554491,1828.1,1828.0,7.30318712]
[1746594903911,21.82554491,1828.1,1828.0,7.30318712]
[1746594906406,1.09449,1827.6,1827.5,1.7299]
[1746594907109,2.83989,1827.6,1827.5,1.7299]
[1746594907308,2.83989,1827.6,1827.5,2.82445]
[1746594907713,1.09455,1827.5,1827.4,4.9011]
[1746594908008,6.83587763,1827.5,1827.4,4.9011]
[1746594908210,2.83995,1827.5,1827.4,4.9011]
[1746594908412,2.83995,1827.5,1827.4,6.569]
[1746594908608,2.83995,1827.5,1827.4,3.3612]
[1746594909309,7.48672763,1827.5,1827.2,7.30318712]
[1746594909502,7.48672763,1827.4,1827.3,1.6679]
[1746594909702,8.58133763,1827.4,1827.3,1.6679]
[1746594909908,1.09487,1827.0,1826.9,1.09489]
[1746594910204,1.09487,1827.0,1826.9,0.8296]
[1746594910609,1.09487,1827.0,1826.9,1.92451]
[1746594911212,4.189,1827.2,1827.1,1.09479]
[1746594911517,9.93032763,1827.2,1827.1,1.09479]
[1746594911717,12.97615491,1827.2,1827.1,1.09479]
[1746594911909,14.07088491,1827.2,1827.1,0.8374]
[1746594912309,14.07088491,1827.2,1827.1,2.4507]
[1746594912816,15.65638491,1827.2,1827.1,2.4507]
[1746594915116,15.65638491,1827.2,1827.1,3.54549]
[1746594916919,12.97615491,1827.2,1827.1,3.54549]
[1746594917513,14.07088491,1827.2,1827.1,3.54549]
[1746594918018,14.07088491,1827.2,1827.1,2.4507]
[1746594918217,14.07088491,1827.2,1827.1,3.54549]
[1746594918419,15.79058491,1827.2,1827.1,3.54549]
[1746594919121,14.69585491,1827.2,1827.1,3.54549]
[1746594919322,15.79058491,1827.2,1827.1,3.54549]
[1746594919526,14.07088491,1827.2,1827.1,3.54549]
[1746594921925,11.02505763,1827.2,1827.1,3.54549]
[1746594922128,14.07088491,1827.2,1827.1,3.54549]
[1746594922330,12.97615491,1827.2,1827.1,3.54549]
[1746594922524,8.47745,1827.4,1827.1,2.4507]
[1746594922726,8.78715491,1827.3,1827.2,2.79383]
[1746594922925,3.2078,1827.4,1827.3,1.09467]
[1746594923120,5.27146,1827.7,1827.6,1.09449]
[1746594923427,9.45846,1827.7,1827.6,1.09449]
[1746594923619,1.09449,1827.6,1827.5,1.6991]
[1746594923925,9.88170491,1827.5,1827.4,0.8248]
[1746594924125,9.88170491,1827.5,1827.4,1.91941]
[1746594924424,2.78505,1827.5,1827.4,3.61851]
[1746594924919,11.57220491,1827.5,1827.4,3.61851]
[1746594927028,8.78715491,1827.5,1827.4,3.61851]
[1746594927230,3.2078,1827.6,1827.5,1.09455]
[1746594927427,8.94912763,1827.6,1827.5,2.81285]
[1746594927729,5.27131,1828.0,1827.5,12.66239]
[1746594927930,5.27131,1828.0,1827.9,1.09429]
[1746594928428,14.05846491,1828.0,1827.9,1.09429]
[1746594929021,1.09431,1827.9,1827.8,2.84194]
[1746594929316,9.88146491,1827.9,1827.8,2.84194]
[1746594930927,9.88146491,1827.9,1827.8,1.7476]
[1746594931129,1.09437,1827.8,1827.7,0.8117]
[1746594931427,11.54532491,1827.8,1827.7,0.8117]
[1746594931729,11.54532491,1827.8,1827.7,1.90613]
[1746594932328,11.54532491,1827.8,1827.7,0.8117]
[1746594932932,1.09449,1827.6,1827.5,5.1324]
[1746594933130,13.08944491,1827.6,1827.5,1.7547]
[1746594933631,14.75324491,1827.6,1827.5,1.7547]
[1746594934030,14.75324491,1827.6,1827.5,2.84925]
[1746594934333,18.35324491,1827.6,1827.5,2.84925]
[1746594934519,18.35324491,1827.6,1827.5,1.7547]
[1746594935532,15.14544491,1827.6,1827.5,2.84925]
[1746594936228,11.54544491,1827.6,1827.5,2.84925]
[1746594936636,11.54544491,1827.6,1827.5,1.7547]
[1746594936928,13.65875491,1827.6,1827.2,1.0947]
[1746594937230,9.88182491,1827.3,1827.2,2.6892]
[1746594937628,1.09467,1827.3,1827.2,2.6892]
[1746594938331,9.88182491,1827.3,1827.2,2.6892]
[1746594938631,12.45512491,1827.3,1827.2,1.0947]
[1746594938831,12.45512491,1827.3,1827.2,3.6286]
[1746594939225,12.45512491,1827.3,1827.2,7.2286]
[1746594941731,3.04582728,1827.3,1827.2,7.2286]
[1746594942233,4.14049728,1827.3,1827.2,7.2286]
[1746594942434,5.79389728,1827.3,1827.2,7.2286]
[1746594944435,11.53522491,1827.3,1827.2,7.2286]
[1746594944929,11.53522491,1827.3,1827.2,3.6]
[1746594945129,10.44055491,1827.3,1827.0,0.8131]
[1746594945325,4.14061728,1827.1,1827.0,0.8131]
[1746594945526,4.14061728,1827.1,1827.0,3.60495]
[1746594945727,1.09479,1827.1,1827.0,3.60495]
[1746594945931,2.76349,1827.1,1827.0,3.60495]
[1746594946132,2.76349,1827.1,1827.0,7.20495]
[1746594947434,4.30258,1827.2,1827.1,1.09479]
[1746594947632,13.08973491,1827.2,1827.1,3.58289]
[1746594947938,13.08973491,1827.2,1827.1,1.09479]
[1746594948134,1.09479,1827.1,1827.0,4.4131]
[1746594948340,4.52329,1827.1,1827.0,3.6]
[1746594948637,4.52329,1827.1,1827.0,4.69485]
[1746594949434,3.65219,1827.1,1827.0,6.30745]
[1746594951736,12.43934491,1827.1,1827.0,4.69485]
[1746594951931,6.69801728,1827.1,1827.0,6.27835]
[1746594953740,6.69801728,1827.1,1827.0,5.27835]
[1746594958741,4.14061728,1827.1,1827.0,5.27835]
[1746594959445,9.88194491,1827.1,1827.0,5.27835]
[1746594960539,8.78715491,1827.1,1827.0,5.27835]
[1746594960746,5.28374,1827.3,1827.2,1.0947]
[1746594960941,11.02506763,1827.3,1827.2,1.0947]
[1746594961245,8.78715491,1827.3,1827.2,3.6]
[1746594961446,11.62252491,1827.3,1827.2,6.1449]
[1746594961643,11.62252491,1827.3,1827.2,7.23963]
[1746594962047,9.88182491,1827.3,1827.2,7.23963]
[1746594965250,9.88182491,1827.3,1827.2,3.6]
[1746594965449,11.47962491,1827.3,1827.2,4.69473]
[1746594966051,6.09554,1827.4,1827.3,1.09467]
[1746594966348,9.14136728,1827.4,1827.3,3.55967]
[1746594966551,14.88269491,1827.4,1827.3,3.55967]
[1746594969357,16.63809491,1827.4,1827.3,2.465]
[1746594969553,1.09467,1827.3,1827.2,1.0947]
[1746594969749,1.09473,1827.2,1827.1,3.58686]
[1746594970054,9.88188491,1827.2,1827.1,3.58686]
[1746594970248,11.63728491,1827.2,1827.1,3.58686]
[1746594975059,10.54255491,1827.2,1827.0,3.6]
[1746594975260,11.62634491,1827.1,1827.0,3.6]
[1746594975962,11.62634491,1827.1,1827.0,4.69485]
[1746594976159,11.62634491,1827.1,1827.0,6.28175]
[1746594977462,11.62634491,1827.1,1827.0,3.6]
[1746594977759,15.81734491,1827.1,1827.0,3.6]
[1746594979263,16.64664491,1827.1,1827.0,3.6]
[1746594979459,16.64664491,1827.1,1827.0,4.69485]
[1746594979665,4.191,1827.1,1827.0,4.69485]
[1746594979865,4.191,1827.1,1827.0,6.29435]
[1746594980659,4.191,1827.4,1827.3,1.09467]
[1746594980863,8.33143728,1827.4,1827.3,1.09467]
[1746594981263,8.33143728,1827.4,1827.3,4.69467]
[1746594981465,8.33143728,1827.4,1827.3,6.29867]
[1746594981667,8.33143728,1827.4,1827.3,5.204]